[Event "*** Titled Tuesday Blitz"]
[Site "Chess.com"]
[Date "2020.05.19"]
[Round "8"]
[White "MFguimaraes"]
[Black "crazy_but_lazy"]
[Result "1-0"]
[WhiteElo "2503"]
[BlackElo "2353"]
[TimeControl "180+1"]
[EndTime "13:36:52 PDT"]
[Termination "MFguimaraes won on time"]

1. e4 {[%clk 0:03:00.9]} 1... c5 {[%clk 0:02:55.1]} 2. Nf3 {[%clk 0:03:00.5]}
2... d6 {[%clk 0:02:54.8]} 3. Bb5+ {[%clk 0:03:00.4]} 3... Bd7 {[%clk
0:02:53.5]} 4. c4 {[%clk 0:02:58.1]} 4... Nf6 {[%clk 0:02:51.5]} 5. Nc3 {[%clk
0:02:57.2]} 5... g6 {[%clk 0:02:51.7]} 6. O-O {[%clk 0:02:56]} 6... Bg7 {[%clk
0:02:52.1]} 7. d4 {[%clk 0:02:51.1]} 7... cxd4 {[%clk 0:02:50.3]} 8. Nxd4 {[%clk
0:02:51.6]} 8... O-O {[%clk 0:02:49.1]} 9. f3 {[%clk 0:02:49.7]} 9... a6 {[%clk
0:02:31.7]} 10. Ba4 {[%clk 0:02:40.9]} 10... Qc7 {[%clk 0:01:58.2]} 11. Be3
{[%clk 0:02:40.6]} 11... Rc8 {[%clk 0:01:50.9]} 12. Bxd7 {[%clk 0:02:38.6]}
12... Nbxd7 {[%clk 0:01:50.8]} 13. Rc1 {[%clk 0:02:32.6]} 13... Rab8 {[%clk
0:01:45.6]} 14. b3 {[%clk 0:02:31.5]} 14... Qd8 {[%clk 0:01:45.4]} 15. Re1
{[%clk 0:02:21.3]} 15... Ne5 {[%clk 0:01:38.3]} 16. h3 {[%clk 0:02:18.9]} 16...
Nc6 {[%clk 0:01:37.6]} 17. Nd5 {[%clk 0:02:17.9]} 17... e6 {[%clk 0:01:35.3]}
18. Nxf6+ {[%clk 0:02:05.2]} 18... Bxf6 {[%clk 0:01:36.2]} 19. Qd2 {[%clk
0:02:02.2]} 19... Nxd4 {[%clk 0:01:31.1]} 20. Bxd4 {[%clk 0:02:03.1]} 20... Rc6
{[%clk 0:01:31.6]} 21. Rcd1 {[%clk 0:01:51.3]} 21... b5 {[%clk 0:01:25.7]} 22.
cxb5 {[%clk 0:01:48.4]} 22... axb5 {[%clk 0:01:26.6]} 23. Bxf6 {[%clk
0:01:41.1]} 23... Qxf6 {[%clk 0:01:27.5]} 24. Qd4 {[%clk 0:01:41.3]} 24... Qg5
{[%clk 0:01:18.6]} 25. Qd2 {[%clk 0:01:28.3]} 25... Qg3 {[%clk 0:00:43]} 26. Qf2
{[%clk 0:01:28.3]} 26... Qxf2+ {[%clk 0:00:35.3]} 27. Kxf2 {[%clk 0:01:28.2]}
27... Kf8 {[%clk 0:00:36.2]} 28. Re2 {[%clk 0:01:27.2]} 28... Ke7 {[%clk
0:00:36.2]} 29. Ke3 {[%clk 0:01:24.1]} 29... b4 {[%clk 0:00:34.1]} 30. Red2
{[%clk 0:01:23.3]} 30... f5 {[%clk 0:00:33.1]} 31. Rd4 {[%clk 0:01:19.5]} 31...
Ra6 {[%clk 0:00:30.2]} 32. R1d2 {[%clk 0:01:16.9]} 32... Rb5 {[%clk 0:00:29.8]}
33. Rc4 {[%clk 0:01:15]} 33... Ra7 {[%clk 0:00:23.1]} 34. Rc6 {[%clk 0:01:12.3]}
34... Rd7 {[%clk 0:00:17.6]} 35. Ra6 {[%clk 0:01:03.6]} 35... Rc5 {[%clk
0:00:16.1]} 36. Rb6 {[%clk 0:00:59.1]} 36... Rc3+ {[%clk 0:00:15.9]} 37. Kf4
{[%clk 0:00:45.7]} 37... e5+ {[%clk 0:00:11.6]} 38. Kg5 {[%clk 0:00:42.1]} 38...
Ke6 {[%clk 0:00:04.1]} 39. Rxb4 {[%clk 0:00:36.3]} 39... Re3 {[%clk 0:00:04.7]}
40. a4 {[%clk 0:00:29.7]} 40... fxe4 {[%clk 0:00:02.7]} 41. fxe4 {[%clk
0:00:25.3]} 41... Rf7 {[%clk 0:00:03.1]} 42. a5 {[%clk 0:00:18.5]} 1-0

[Event "*** Titled Tuesday Blitz"]
[Site "Chess.com"]
[Date "2020.05.19"]
[Round "8"]
[White "Glidzhian_Gor"]
[Black "MFBerna"]
[Result "0-1"]
[WhiteElo "2453"]
[BlackElo "2342"]
[TimeControl "180+1"]
[EndTime "13:36:52 PDT"]
[Termination "MFBerna won on time"]

1. e4 {[%clk 0:03:00.9]} 1... c5 {[%clk 0:02:50.2]} 2. d4 {[%clk 0:03:00.8]}
2... cxd4 {[%clk 0:02:50.3]} 3. c3 {[%clk 0:03:01.1]} 3... dxc3 {[%clk
0:02:51.2]} 4. Nxc3 {[%clk 0:03:01.3]} 4... Nc6 {[%clk 0:02:50.8]} 5. Bc4 {[%clk
0:03:01.8]} 5... e6 {[%clk 0:02:50.9]} 6. Nf3 {[%clk 0:03:02.5]} 6... d6 {[%clk
0:02:47.2]} 7. O-O {[%clk 0:03:02.6]} 7... Nf6 {[%clk 0:02:46.4]} 8. Qe2 {[%clk
0:03:03]} 8... Be7 {[%clk 0:02:43.4]} 9. Rd1 {[%clk 0:03:03.5]} 9... Qc7 {[%clk
0:02:31.6]} 10. Bg5 {[%clk 0:02:59.7]} 10... a6 {[%clk 0:02:29.6]} 11. Rac1
{[%clk 0:02:57.5]} 11... O-O {[%clk 0:02:29.7]} 12. Bb3 {[%clk 0:02:47.1]} 12...
Qa5 {[%clk 0:02:13.8]} 13. Nd5 {[%clk 0:02:23.1]} 13... exd5 {[%clk 0:02:10.4]}
14. exd5 {[%clk 0:02:22.6]} 14... Ne5 {[%clk 0:02:02]} 15. Nxe5 {[%clk
0:02:21.8]} 15... dxe5 {[%clk 0:02:02.9]} 16. d6 {[%clk 0:02:21.3]} 16... Bg4
{[%clk 0:01:55]} 17. f3 {[%clk 0:02:20.1]} 17... Bd8 {[%clk 0:01:44.4]} 18. fxg4
{[%clk 0:02:18.1]} 18... e4 {[%clk 0:01:37.4]} 19. Be3 {[%clk 0:02:13.4]} 19...
Bb6 {[%clk 0:01:35.6]} 20. h3 {[%clk 0:01:44.3]} 20... Rad8 {[%clk 0:01:29.9]}
21. g5 {[%clk 0:01:42.2]} 21... Nh5 {[%clk 0:01:22.2]} 22. Rd5 {[%clk
0:01:12.4]} 22... Nf4 {[%clk 0:01:08.7]} 23. Qe1 {[%clk 0:00:35]} 23... Nxd5
{[%clk 0:01:01.1]} 24. Qxa5 {[%clk 0:00:33.9]} 24... Bxa5 {[%clk 0:00:52.6]} 25.
Bxd5 {[%clk 0:00:34.3]} 25... Rxd6 {[%clk 0:00:53.3]} 26. Bxb7 {[%clk
0:00:32.9]} 26... Bb6 {[%clk 0:00:49.3]} 27. Bxb6 {[%clk 0:00:23.9]} 27... Rxb6
{[%clk 0:00:50.2]} 28. Bxe4 {[%clk 0:00:24.7]} 28... Rxb2 {[%clk 0:00:50.7]} 29.
Bd5 {[%clk 0:00:24.6]} 29... Rb5 {[%clk 0:00:44]} 30. Bb3 {[%clk 0:00:21.9]}
30... Rxg5 {[%clk 0:00:42.9]} 31. Rc7 {[%clk 0:00:22.6]} 31... a5 {[%clk
0:00:36.8]} 32. Ra7 {[%clk 0:00:21.6]} 32... g6 {[%clk 0:00:35.8]} 33. Kf2
{[%clk 0:00:21.1]} 33... Rf5+ {[%clk 0:00:35.9]} 34. Ke3 {[%clk 0:00:21.3]}
34... h5 {[%clk 0:00:36.1]} 35. g4 {[%clk 0:00:21.3]} 35... hxg4 {[%clk
0:00:37]} 36. hxg4 {[%clk 0:00:22.2]} 36... Rf6 {[%clk 0:00:37.3]} 37. Ke4
{[%clk 0:00:14.5]} 37... Re8+ {[%clk 0:00:36.8]} 38. Kd3 {[%clk 0:00:14]} 38...
Rd8+ {[%clk 0:00:31.3]} 39. Ke4 {[%clk 0:00:14.1]} 39... Re8+ {[%clk 0:00:31]}
40. Kd3 {[%clk 0:00:14.3]} 40... Rf3+ {[%clk 0:00:28.6]} 41. Kd2 {[%clk
0:00:13.7]} 41... Rf4 {[%clk 0:00:23.5]} 42. Rxa5 {[%clk 0:00:08.8]} 42... Rxg4
{[%clk 0:00:23.6]} 43. Ra7 {[%clk 0:00:09.7]} 43... Rf4 {[%clk 0:00:23.7]} 44.
Kd3 {[%clk 0:00:09.1]} 44... g5 {[%clk 0:00:23]} 45. a4 {[%clk 0:00:06.9]} 45...
Rf3+ {[%clk 0:00:22.9]} 46. Kc2 {[%clk 0:00:07.1]} 46... Rc8+ {[%clk 0:00:22.4]}
0-1

[Event "*** Titled Tuesday Blitz"]
[Site "Chess.com"]
[Date "2020.05.19"]
[Round "8"]
[White "GM_LOADING"]
[Black "TST2014"]
[Result "0-1"]
[WhiteElo "2448"]
[BlackElo "2577"]
[TimeControl "180+1"]
[EndTime "13:36:53 PDT"]
[Termination "TST2014 won by checkmate"]

1. e4 {[%clk 0:03:00.9]} 1... c5 {[%clk 0:02:20.6]} 2. Nf3 {[%clk 0:03:00.4]}
2... Nc6 {[%clk 0:02:19.1]} 3. d4 {[%clk 0:03:00.3]} 3... cxd4 {[%clk 0:02:19]}
4. Nxd4 {[%clk 0:03:01.2]} 4... Nf6 {[%clk 0:02:19.3]} 5. Nc3 {[%clk 0:03:01.1]}
5... d6 {[%clk 0:02:19.6]} 6. Bg5 {[%clk 0:03:01]} 6... e5 {[%clk 0:02:19.7]} 7.
Ndb5 {[%clk 0:02:59.8]} 7... a6 {[%clk 0:02:19]} 8. Na3 {[%clk 0:03:00]} 8... h6
{[%clk 0:02:13.9]} 9. Bxf6 {[%clk 0:02:58.9]} 9... Qxf6 {[%clk 0:02:14.2]} 10.
Nc4 {[%clk 0:02:47.3]} 10... Qd8 {[%clk 0:02:11.1]} 11. Nd5 {[%clk 0:02:37.6]}
11... Be6 {[%clk 0:02:07.7]} 12. Ncb6 {[%clk 0:02:34.3]} 12... Rb8 {[%clk
0:01:59.8]} 13. c3 {[%clk 0:02:20.7]} 13... Be7 {[%clk 0:01:58.7]} 14. Be2
{[%clk 0:02:15]} 14... O-O {[%clk 0:01:57.9]} 15. O-O {[%clk 0:02:14.6]} 15...
Bg5 {[%clk 0:01:58]} 16. Bg4 {[%clk 0:01:55.8]} 16... Ne7 {[%clk 0:01:55.5]} 17.
Nxe7+ {[%clk 0:01:20.9]} 17... Qxe7 {[%clk 0:01:51.8]} 18. Nd5 {[%clk
0:01:20.3]} 18... Qd7 {[%clk 0:01:46.6]} 19. h3 {[%clk 0:01:18.9]} 19... f5
{[%clk 0:01:31.2]} 20. exf5 {[%clk 0:01:14.8]} 20... Bxf5 {[%clk 0:01:30.9]} 21.
Bxf5 {[%clk 0:01:09.3]} 21... Rxf5 {[%clk 0:01:19.1]} 22. Qg4 {[%clk 0:01:02.2]}
22... Qf7 {[%clk 0:01:15]} 23. Rad1 {[%clk 0:01:00.3]} 23... Rf8 {[%clk
0:01:13.7]} 24. Qg3 {[%clk 0:00:36.7]} 24... Bf4 {[%clk 0:00:58]} 25. Nxf4
{[%clk 0:00:35.1]} 25... exf4 {[%clk 0:00:56.6]} 26. Qf3 {[%clk 0:00:35.4]}
26... d5 {[%clk 0:00:54.1]} 27. Rd4 {[%clk 0:00:34.5]} 27... Re5 {[%clk
0:00:50.4]} 28. Rfd1 {[%clk 0:00:33.7]} 28... Re4 {[%clk 0:00:29.6]} 29. Rxd5
{[%clk 0:00:29.7]} 29... Qe6 {[%clk 0:00:29.4]} 30. Rd7 {[%clk 0:00:20.6]} 30...
Re1+ {[%clk 0:00:29.1]} 31. Rxe1 {[%clk 0:00:20.6]} 31... Qxe1+ {[%clk
0:00:29.5]} 32. Kh2 {[%clk 0:00:20.6]} 32... b5 {[%clk 0:00:30.2]} 33. Qg4
{[%clk 0:00:07.5]} 33... Qe5 {[%clk 0:00:27.9]} 34. f3 {[%clk 0:00:08]} 34... a5
{[%clk 0:00:24.5]} 35. Rb7 {[%clk 0:00:07.7]} 35... Rf7 {[%clk 0:00:17.9]} 36.
Qc8+ {[%clk 0:00:06.6]} 36... Rf8 {[%clk 0:00:16.8]} 37. Qd7 {[%clk 0:00:06.7]}
37... Kh7 {[%clk 0:00:12.8]} 38. Rxb5 {[%clk 0:00:04.7]} 38... Qe1 {[%clk
0:00:12.6]} 39. Qg4 {[%clk 0:00:04.5]} 39... Rf6 {[%clk 0:00:12]} 40. Rb7 {[%clk
0:00:02.7]} 40... Rg6 {[%clk 0:00:10.3]} 41. Qxf4 {[%clk 0:00:03.2]} 41... Qf2
{[%clk 0:00:10]} 42. h4 {[%clk 0:00:03.6]} 42... Qxg2# {[%clk 0:00:09.9]} 0-1

[Event "*** Titled Tuesday Blitz"]
[Site "Chess.com"]
[Date "2020.05.19"]
[Round "8"]
[White "WPWPWP-2015"]
[Black "AliKa2810"]
[Result "1-0"]
[WhiteElo "2428"]
[BlackElo "2604"]
[TimeControl "180+1"]
[EndTime "13:36:54 PDT"]
[Termination "WPWPWP-2015 won on time"]

1. e4 {[%clk 0:03:00.5]} 1... e6 {[%clk 0:02:59.3]} 2. d4 {[%clk 0:02:53.9]}
2... d5 {[%clk 0:03:00.2]} 3. Nc3 {[%clk 0:02:53.5]} 3... Bb4 {[%clk 0:02:59.2]}
4. a3 {[%clk 0:02:52.8]} 4... Bxc3+ {[%clk 0:02:59]} 5. bxc3 {[%clk 0:02:52.1]}
5... dxe4 {[%clk 0:02:59.7]} 6. Qg4 {[%clk 0:02:51.1]} 6... Nf6 {[%clk
0:03:00.2]} 7. Qxg7 {[%clk 0:02:50.8]} 7... Rg8 {[%clk 0:03:00.9]} 8. Qh6 {[%clk
0:02:50.9]} 8... c5 {[%clk 0:03:00.9]} 9. Ne2 {[%clk 0:02:49.8]} 9... Bd7 {[%clk
0:03:01.2]} 10. h3 {[%clk 0:02:48.6]} 10... Ba4 {[%clk 0:02:57.1]} 11. Qd2
{[%clk 0:02:45.4]} 11... Nbd7 {[%clk 0:02:45.3]} 12. Ng3 {[%clk 0:02:40.1]}
12... Rc8 {[%clk 0:02:43]} 13. Ra2 {[%clk 0:02:35.6]} 13... Qb6 {[%clk
0:02:38.6]} 14. Rb2 {[%clk 0:02:34]} 14... Qc6 {[%clk 0:02:34.9]} 15. Be2 {[%clk
0:02:27.8]} 15... e3 {[%clk 0:02:26.1]} 16. Qxe3 {[%clk 0:02:23.2]} 16... cxd4
{[%clk 0:01:55.3]} 17. cxd4 {[%clk 0:02:18.5]} 17... Nb6 {[%clk 0:01:55.5]} 18.
Qf3 {[%clk 0:01:58]} 18... Nfd5 {[%clk 0:01:53.5]} 19. c4 {[%clk 0:01:55]} 19...
Nxc4 {[%clk 0:01:50.5]} 20. Rb1 {[%clk 0:01:25.3]} 20... Bc2 {[%clk 0:01:35.6]}
21. Ra1 {[%clk 0:01:24.2]} 21... Na5 {[%clk 0:01:27.5]} 22. O-O {[%clk 0:01:07]}
22... Nb3 {[%clk 0:01:25.4]} 23. Ra2 {[%clk 0:01:06.1]} 23... Nxd4 {[%clk
0:00:53.4]} 24. Qh5 {[%clk 0:01:04]} 24... Nc3 {[%clk 0:00:40.7]} 25. Rxc2
{[%clk 0:00:48]} 25... Ncxe2+ {[%clk 0:00:33]} 26. Rxe2 {[%clk 0:00:45.8]} 26...
Nxe2+ {[%clk 0:00:24.2]} 27. Qxe2 {[%clk 0:00:45.4]} 27... Qc4 {[%clk
0:00:17.1]} 28. Qh5 {[%clk 0:00:34.9]} 28... Rc5 {[%clk 0:00:10.8]} 29. Qxh7
{[%clk 0:00:30.1]} 29... Rg6 {[%clk 0:00:10.8]} 30. Qh8+ {[%clk 0:00:27.5]}
30... Ke7 {[%clk 0:00:10.7]} 31. Be3 {[%clk 0:00:26.1]} 31... Rd5 {[%clk
0:00:06.8]} 32. Qb8 {[%clk 0:00:20.4]} 32... Rd7 {[%clk 0:00:06.3]} 33. Qxa7
{[%clk 0:00:19.5]} 33... Qd3 {[%clk 0:00:05]} 34. Qc5+ {[%clk 0:00:18.1]} 34...
Ke8 {[%clk 0:00:05]} 35. Qc8+ {[%clk 0:00:17.4]} 35... Rd8 {[%clk 0:00:04.9]}
36. Qc5 {[%clk 0:00:15.9]} 36... Rd7 {[%clk 0:00:04.5]} 37. Rc1 {[%clk 0:00:14]}
37... f5 {[%clk 0:00:02.5]} 38. Qc8+ {[%clk 0:00:08]} 38... Kf7 {[%clk 0:00:03]}
39. Qh8 {[%clk 0:00:06]} 39... Rxg3 {[%clk 0:00:02]} 40. Rc8 {[%clk 0:00:03.6]}
1-0

[Event "*** Titled Tuesday Blitz"]
[Site "Chess.com"]
[Date "2020.05.19"]
[Round "8"]
[White "keepitcool9499"]
[Black "1f3_2g41-0"]
[Result "0-1"]
[WhiteElo "2450"]
[BlackElo "2330"]
[TimeControl "180+1"]
[EndTime "13:36:54 PDT"]
[Termination "1f3_2g41-0 won on time"]

1. d4 {[%clk 0:03:00.9]} 1... Nf6 {[%clk 0:02:59.6]} 2. c4 {[%clk 0:03:01.8]}
2... g6 {[%clk 0:02:59.4]} 3. Nc3 {[%clk 0:03:01.5]} 3... d5 {[%clk 0:02:59.9]}
4. Nf3 {[%clk 0:03:00.6]} 4... Bg7 {[%clk 0:02:59.3]} 5. e3 {[%clk 0:02:58.2]}
5... O-O {[%clk 0:02:59.6]} 6. Bd3 {[%clk 0:02:55.5]} 6... Nc6 {[%clk
0:02:59.1]} 7. O-O {[%clk 0:02:55]} 7... e6 {[%clk 0:02:58.4]} 8. b3 {[%clk
0:02:50.1]} 8... a5 {[%clk 0:02:56.6]} 9. Bb2 {[%clk 0:02:50.1]} 9... Nb4 {[%clk
0:02:52]} 10. Bb1 {[%clk 0:02:49.1]} 10... b6 {[%clk 0:02:49.7]} 11. Ne5 {[%clk
0:02:48.5]} 11... Nd7 {[%clk 0:02:30.2]} 12. Nxd7 {[%clk 0:02:44.7]} 12... Qxd7
{[%clk 0:02:31.1]} 13. a3 {[%clk 0:02:39.8]} 13... Nc6 {[%clk 0:02:30.2]} 14.
cxd5 {[%clk 0:02:39.7]} 14... exd5 {[%clk 0:02:27.7]} 15. Qf3 {[%clk 0:02:39.6]}
15... Ne7 {[%clk 0:02:18.7]} 16. Bd3 {[%clk 0:02:34]} 16... Bb7 {[%clk
0:02:09.8]} 17. b4 {[%clk 0:02:26.4]} 17... c5 {[%clk 0:02:05.7]} 18. bxc5
{[%clk 0:02:25.3]} 18... bxc5 {[%clk 0:02:04.9]} 19. Bb5 {[%clk 0:02:06.5]}
19... Qc7 {[%clk 0:02:00.8]} 20. Ne2 {[%clk 0:02:03.1]} 20... a4 {[%clk
0:01:45.1]} 21. Rab1 {[%clk 0:01:56.5]} 21... c4 {[%clk 0:01:33.7]} 22. Bc3
{[%clk 0:01:53.6]} 22... Nf5 {[%clk 0:01:28.7]} 23. Ng3 {[%clk 0:01:47.5]} 23...
Nd6 {[%clk 0:01:25.3]} 24. Bb4 {[%clk 0:01:35.7]} 24... Rfb8 {[%clk 0:01:10.2]}
25. Bxd6 {[%clk 0:01:30.9]} 25... Qxd6 {[%clk 0:01:10.4]} 26. Bxc4 {[%clk
0:01:30.7]} 26... Bc6 {[%clk 0:01:00.1]} 27. Be2 {[%clk 0:01:22.2]} 27... Qxa3
{[%clk 0:00:57.8]} 28. Ra1 {[%clk 0:01:20.1]} 28... Qb2 {[%clk 0:00:51.2]} 29.
Bd3 {[%clk 0:01:06.4]} 29... Qc3 {[%clk 0:00:45.5]} 30. Bxg6 {[%clk 0:00:37.3]}
30... hxg6 {[%clk 0:00:34.6]} 31. Rac1 {[%clk 0:00:37.5]} 31... Qb3 {[%clk
0:00:32.6]} 32. Rxc6 {[%clk 0:00:35.8]} 32... a3 {[%clk 0:00:33]} 33. Rc7 {[%clk
0:00:32.6]} 33... Rf8 {[%clk 0:00:32.9]} 34. h4 {[%clk 0:00:28.8]} 34... a2
{[%clk 0:00:33.1]} 35. Ra1 {[%clk 0:00:24.3]} 35... Qb2 {[%clk 0:00:24.2]} 36.
Rcc1 {[%clk 0:00:21.2]} 36... Rfc8 {[%clk 0:00:20.7]} 37. Rd1 {[%clk 0:00:18.2]}
37... Rc2 {[%clk 0:00:20]} 38. Qxd5 {[%clk 0:00:15.4]} 38... Rac8 {[%clk
0:00:20.5]} 39. h5 {[%clk 0:00:11.8]} 39... Rxf2 {[%clk 0:00:19.9]} 40. hxg6
{[%clk 0:00:09.6]} 40... Rcc2 {[%clk 0:00:17]} 41. gxf7+ {[%clk 0:00:06.9]}
41... Kh7 {[%clk 0:00:07.6]} 42. Qh5+ {[%clk 0:00:03.5]} 42... Bh6 {[%clk
0:00:07.6]} 43. f8=Q {[%clk 0:00:01.3]} 43... Rxg2+ {[%clk 0:00:03.3]} 0-1

[Event "*** Titled Tuesday Blitz"]
[Site "Chess.com"]
[Date "2020.05.19"]
[Round "8"]
[White "manikoloz"]
[Black "Enriquack"]
[Result "1-0"]
[WhiteElo "2476"]
[BlackElo "2303"]
[TimeControl "180+1"]
[EndTime "13:36:55 PDT"]
[Termination "manikoloz won by resignation"]

1. Nf3 {[%clk 0:03:00.9]} 1... Nf6 {[%clk 0:02:59.5]} 2. c4 {[%clk 0:03:00.2]}
2... g6 {[%clk 0:02:58]} 3. g3 {[%clk 0:02:56.7]} 3... Bg7 {[%clk 0:02:56.4]} 4.
Bg2 {[%clk 0:02:57.3]} 4... O-O {[%clk 0:02:57.1]} 5. O-O {[%clk 0:02:57.4]}
5... Nc6 {[%clk 0:02:54.6]} 6. d4 {[%clk 0:02:55.9]} 6... d5 {[%clk 0:02:54.5]}
7. cxd5 {[%clk 0:02:55.3]} 7... Nxd5 {[%clk 0:02:55.4]} 8. e4 {[%clk 0:02:55.5]}
8... Nb6 {[%clk 0:02:55.6]} 9. d5 {[%clk 0:02:51.6]} 9... Na5 {[%clk 0:02:55.1]}
10. Nc3 {[%clk 0:02:36.5]} 10... c6 {[%clk 0:02:54.9]} 11. Be3 {[%clk
0:02:32.8]} 11... Nac4 {[%clk 0:02:44.8]} 12. Bxb6 {[%clk 0:02:31.4]} 12... Qxb6
{[%clk 0:02:35.7]} 13. dxc6 {[%clk 0:02:26.1]} 13... bxc6 {[%clk 0:02:29.4]} 14.
Na4 {[%clk 0:02:13.4]} 14... Qa5 {[%clk 0:02:25.9]} 15. Qc2 {[%clk 0:01:56]}
15... Be6 {[%clk 0:02:11.3]} 16. Rab1 {[%clk 0:01:39.5]} 16... Nb6 {[%clk
0:02:04.1]} 17. Nxb6 {[%clk 0:01:34.7]} 17... axb6 {[%clk 0:02:03.2]} 18. a3
{[%clk 0:01:33.3]} 18... Rac8 {[%clk 0:01:41.2]} 19. h4 {[%clk 0:01:30.9]} 19...
h6 {[%clk 0:01:35.8]} 20. Rfd1 {[%clk 0:01:24.5]} 20... c5 {[%clk 0:01:31.4]}
21. Rd2 {[%clk 0:00:50.4]} 21... Rfd8 {[%clk 0:01:21.5]} 22. Rbd1 {[%clk
0:00:49.9]} 22... Rxd2 {[%clk 0:01:21.4]} 23. Rxd2 {[%clk 0:00:50.8]} 23... Qb5
{[%clk 0:01:17.5]} 24. Bf1 {[%clk 0:00:48.6]} 24... Qb3 {[%clk 0:01:17.1]} 25.
Qxb3 {[%clk 0:00:47.6]} 25... Bxb3 {[%clk 0:01:18]} 26. Bb5 {[%clk 0:00:42.6]}
26... Kf8 {[%clk 0:01:14.7]} 27. Kf1 {[%clk 0:00:40.9]} 27... Be6 {[%clk
0:00:38.2]} 28. Ke2 {[%clk 0:00:38.1]} 28... Bg4 {[%clk 0:00:38.4]} 29. Ke3
{[%clk 0:00:38.4]} 29... Bxf3 {[%clk 0:00:25.1]} 30. Kxf3 {[%clk 0:00:38.3]}
30... Bd4 {[%clk 0:00:25.8]} 31. b3 {[%clk 0:00:35]} 31... e6 {[%clk 0:00:24.8]}
32. a4 {[%clk 0:00:34.9]} 32... Ke7 {[%clk 0:00:25]} 33. Ke2 {[%clk 0:00:34.6]}
33... f5 {[%clk 0:00:25.3]} 34. exf5 {[%clk 0:00:34]} 34... gxf5 {[%clk
0:00:25]} 35. Kd3 {[%clk 0:00:34.6]} 35... Rd8 {[%clk 0:00:24.7]} 36. Kc4 {[%clk
0:00:34.7]} 36... Kf6 {[%clk 0:00:25.3]} 37. Re2 {[%clk 0:00:34.8]} 37... e5
{[%clk 0:00:25.4]} 38. Bc6 {[%clk 0:00:35]} 38... e4 {[%clk 0:00:25]} 39. Kb5
{[%clk 0:00:34.9]} 39... Ke5 {[%clk 0:00:22.5]} 40. Ka6 {[%clk 0:00:20]} 40...
Rd6 {[%clk 0:00:22.5]} 41. Kb7 {[%clk 0:00:19.6]} 41... Kf6 {[%clk 0:00:18.4]}
42. Kc7 {[%clk 0:00:18.8]} 42... Re6 {[%clk 0:00:18.7]} 43. Bd5 {[%clk
0:00:18.1]} 43... Re7+ {[%clk 0:00:18.6]} 44. Kc6 {[%clk 0:00:18.3]} 44... Re5
{[%clk 0:00:19.3]} 45. Bc4 {[%clk 0:00:18.2]} 45... e3 {[%clk 0:00:15.8]} 46.
fxe3 {[%clk 0:00:17.2]} 46... Rxe3 {[%clk 0:00:16.4]} 47. Rxe3 {[%clk
0:00:17.4]} 47... Bxe3 {[%clk 0:00:17]} 48. Kxb6 {[%clk 0:00:17.2]} 48... Ke5
{[%clk 0:00:17.6]} 49. a5 {[%clk 0:00:17.5]} 49... f4 {[%clk 0:00:12.9]} 50.
gxf4+ {[%clk 0:00:17.3]} 50... Bxf4 {[%clk 0:00:13.4]} 51. a6 {[%clk 0:00:18.1]}
1-0

[Event "*** Titled Tuesday Blitz"]
[Site "Chess.com"]
[Date "2020.05.19"]
[Round "8"]
[White "DinaBelenkaya"]
[Black "Ural_bogatyr"]
[Result "1-0"]
[WhiteElo "2232"]
[BlackElo "2359"]
[TimeControl "180+1"]
[EndTime "13:36:56 PDT"]
[Termination "DinaBelenkaya won on time"]

1. e4 {[%clk 0:03:00.9]} 1... e5 {[%clk 0:02:58.9]} 2. Nf3 {[%clk 0:02:54.4]}
2... Nc6 {[%clk 0:02:58.2]} 3. d4 {[%clk 0:02:53.5]} 3... exd4 {[%clk 0:02:58]}
4. Nxd4 {[%clk 0:02:53.5]} 4... Qf6 {[%clk 0:02:58.2]} 5. Nb3 {[%clk 0:02:48]}
5... a5 {[%clk 0:02:50.8]} 6. a4 {[%clk 0:02:46.7]} 6... Bb4+ {[%clk 0:02:34.5]}
7. c3 {[%clk 0:02:42]} 7... Bd6 {[%clk 0:02:34.7]} 8. N1d2 {[%clk 0:02:34]} 8...
Nge7 {[%clk 0:02:31.8]} 9. Nf3 {[%clk 0:02:33.4]} 9... Bf4 {[%clk 0:02:29.1]}
10. Be2 {[%clk 0:02:23.9]} 10... d6 {[%clk 0:02:24.7]} 11. Nbd4 {[%clk
0:02:09.6]} 11... O-O {[%clk 0:02:18.3]} 12. Nb5 {[%clk 0:02:04]} 12... Bg4
{[%clk 0:01:59.1]} 13. Nxc7 {[%clk 0:01:55.7]} 13... Rac8 {[%clk 0:01:55.5]} 14.
Nd5 {[%clk 0:01:55.3]} 14... Nxd5 {[%clk 0:01:55.1]} 15. Qxd5 {[%clk 0:01:55.4]}
15... Rfe8 {[%clk 0:01:42.9]} 16. O-O {[%clk 0:01:54.2]} 16... Bxf3 {[%clk
0:01:35.7]} 17. Bxf3 {[%clk 0:01:51.4]} 17... Ne5 {[%clk 0:01:20.6]} 18. Be2
{[%clk 0:01:51.4]} 18... Rc5 {[%clk 0:01:13.7]} 19. Qd4 {[%clk 0:01:50.2]} 19...
g5 {[%clk 0:00:43.8]} 20. Rd1 {[%clk 0:01:44.1]} 20... Re6 {[%clk 0:00:41.5]}
21. b4 {[%clk 0:01:15.3]} 21... Rc8 {[%clk 0:00:34.1]} 22. bxa5 {[%clk
0:01:12.9]} 22... g4 {[%clk 0:00:27.9]} 23. Bxf4 {[%clk 0:01:05.7]} 23... Qxf4
{[%clk 0:00:28.8]} 24. c4 {[%clk 0:01:02.9]} 24... Rh6 {[%clk 0:00:19]} 25. g3
{[%clk 0:01:02.3]} 25... Qg5 {[%clk 0:00:17]} 26. h4 {[%clk 0:00:51]} 26... gxh3
{[%clk 0:00:16.5]} 27. Kh2 {[%clk 0:00:51.4]} 27... Rxc4 {[%clk 0:00:12.2]} 28.
Qd2 {[%clk 0:00:44.5]} 28... Qxd2 {[%clk 0:00:10]} 29. Rxd2 {[%clk 0:00:44.9]}
29... Rxe4 {[%clk 0:00:09.8]} 30. f4 {[%clk 0:00:44.6]} 30... Rxe2+ {[%clk
0:00:05.8]} 31. Rxe2 {[%clk 0:00:44.4]} 31... Ng4+ {[%clk 0:00:06.1]} 32. Kh1
{[%clk 0:00:44.2]} 32... d5 {[%clk 0:00:04.3]} 33. Rc1 {[%clk 0:00:37.7]} 33...
Rd6 {[%clk 0:00:03.2]} 34. Rc8+ {[%clk 0:00:32.6]} 34... Kg7 {[%clk 0:00:03.1]}
35. Ree8 {[%clk 0:00:27.3]} 35... Kf6 {[%clk 0:00:02.9]} 36. Rg8 {[%clk
0:00:19.5]} 36... h5 {[%clk 0:00:03]} 37. Rge8 {[%clk 0:00:16.9]} 37... d4
{[%clk 0:00:02.7]} 38. Rcd8 {[%clk 0:00:14]} 38... Re6 {[%clk 0:00:01]} 39.
Rxe6+ {[%clk 0:00:13.6]} 39... Kxe6 {[%clk 0:00:01.9]} 40. Rxd4 {[%clk
0:00:14.1]} 40... Kf5 {[%clk 0:00:02.8]} 41. Rb4 {[%clk 0:00:11.7]} 41... f6
{[%clk 0:00:01.3]} 42. Rxb7 {[%clk 0:00:11.7]} 42... Ke4 {[%clk 0:00:01.5]} 43.
Rb3 {[%clk 0:00:11.8]} 1-0